[Event "NJSK 2024 C"]
[Site "Groningen, Netherlands"]
[Date "2024.05.03"]
[Round "9.13"]
[White "Haque, Nishaaz"]
[Black "Stylianou, Alexandros"]
[Result "1-0"]
[TimeControl "90min/40moves + 30min + 30sec/move"]
[WhiteElo "1803"]
[BlackElo "1642"]

1. a3 {[%clk 01:31:00]} e5 {[%clk 01:30:52]} {[%emt 00:00:07]} 2. c4 {[%clk
01:31:27]} {[%emt 00:00:04]} f5 {[%clk 01:31:10]} {[%emt 00:00:11]} 3. Nc3
{[%clk 01:31:28]} {[%emt 00:00:29]} Nf6 {[%clk 01:31:09]} {[%emt 00:00:31]} 4.
e3 {[%clk 01:31:44]} {[%emt 00:00:15]} Nc6 {[%clk 01:30:42]} {[%emt 00:00:57]}
5. Nge2 {[%clk 01:31:57]} {[%emt 00:00:17]} d5 {[%clk 01:30:42]} {[%emt
00:00:30]} 6. cxd5 {[%clk 01:31:08]} {[%emt 00:01:19]} Nxd5 {[%clk 01:30:52]}
{[%emt 00:00:19]} 7. d4 {[%clk 01:30:50]} {[%emt 00:00:49]} e4 {[%clk
01:30:23]} {[%emt 00:00:59]} 8. Nxd5 {[%clk 01:30:34]} {[%emt 00:00:46]} Qxd5
{[%clk 01:30:37]} {[%emt 00:00:16]} 9. Nc3 {[%clk 01:31:00]} {[%emt 00:00:04]}
Qa5 {[%clk 01:29:15]} {[%emt 00:01:51]} 10. Bd2 {[%clk 01:30:35]} {[%emt
00:00:53]} Qb6 {[%clk 01:28:09]} {[%emt 00:01:39]} 11. Nd5 {[%clk 01:30:13]}
{[%emt 00:00:52]} Qxb2 {[%clk 01:24:34]} {[%emt 00:04:05]} 12. Bc3 {[%clk
01:30:25]} {[%emt 00:00:17]} Qxa1 {[%clk 01:17:55]} {[%emt 00:07:08]} 13. Qxa1
{[%clk 01:30:14]} {[%emt 00:00:42]} Bd6 {[%clk 01:17:56]} {[%emt 00:00:29]} 14.
Bb5 {[%clk 01:30:13]} {[%emt 00:00:32]} Bd7 {[%clk 01:18:06]} {[%emt 00:00:19]}
15. Nb4 {[%clk 01:30:18]} {[%emt 00:00:26]} Bxb4 {[%clk 01:17:50]} {[%emt
00:00:45]} 16. Bxb4 {[%clk 01:30:28]} {[%emt 00:00:20]} O-O-O {[%clk 01:17:29]}
{[%emt 00:00:51]} 17. Bc3 {[%clk 01:29:25]} {[%emt 00:01:34]} a6 {[%clk
01:17:09]} {[%emt 00:00:50]} 18. Bc4 {[%clk 01:29:08]} {[%emt 00:00:45]} Rhf8
{[%clk 01:17:08]} {[%emt 00:00:31]} 19. d5 {[%clk 01:28:55]} {[%emt 00:00:45]}
Ne7 {[%clk 01:17:05]} {[%emt 00:00:28]} 20. Bxg7 {[%clk 01:29:20]} {[%emt
00:00:10]} Rg8 {[%clk 01:16:48]} {[%emt 00:00:45]} 21. d6 {[%clk 01:29:37]}
{[%emt 00:00:14]} Nc6 {[%clk 01:16:37]} {[%emt 00:00:41]} 22. Bxg8 {[%clk
01:29:48]} {[%emt 00:00:18]} Rxg8 {[%clk 01:16:53]} {[%emt 00:00:14]} 23. dxc7
{[%clk 01:29:31]} {[%emt 00:00:48]} Kxc7 {[%clk 01:17:12]} {[%emt 00:00:10]} 24.
O-O {[%clk 01:29:47]} {[%emt 00:00:16]} Be6 {[%clk 01:16:40]} {[%emt 00:01:01]}
25. Be5+ {[%clk 01:29:29]} {[%emt 00:00:48]} Kc8 {[%clk 01:16:52]} {[%emt
00:00:18]} 26. Bf4 {[%clk 01:29:23]} {[%emt 00:00:37]} Bc4 {[%clk 01:17:06]}
{[%emt 00:00:16]} 27. Qf6 {[%clk 01:28:28]} {[%emt 00:01:13]} Bxf1 {[%clk
01:16:16]} {[%emt 00:01:31]} 28. Qe6+ {[%clk 01:28:48]} {[%emt 00:00:11]} Kd8
{[%clk 01:15:54]} {[%emt 00:00:51]} 29. Qxg8+ {[%clk 01:29:13]} {[%emt
00:00:05]} Kd7 {[%clk 01:15:57]} {[%emt 00:00:27]} 30. Qxh7+ {[%clk 01:29:38]}
{[%emt 00:00:05]} Ke6 {[%clk 01:15:33]} {[%emt 00:00:54]} 31. Qg6+ {[%clk
01:29:57]} {[%emt 00:00:08]} Ke7 {[%clk 01:15:30]} {[%emt 00:00:37]} 32. Bg5+
{[%clk 01:30:16]} {[%emt 00:00:09]} Kd7 {[%clk 01:15:16]} {[%emt 00:00:45]} 33.
Qxf5+ {[%clk 01:30:39]} {[%emt 00:00:06]} Kc7 {[%clk 01:15:41]} {[%emt
00:00:06]} 34. Kxf1 {[%clk 01:30:57]} {[%emt 00:00:12]} Kb6 {[%clk 01:14:18]}
{[%emt 00:01:52]} 35. Qxe4 {[%clk 01:31:11]} {[%emt 00:00:16]} Ka7 {[%clk
01:14:16]} {[%emt 00:00:33]} 36. Be7 {[%clk 01:31:26]} {[%emt 00:00:15]} Kb6
{[%clk 01:14:26]} {[%emt 00:00:20]} 37. Bh4 {[%clk 01:31:17]} {[%emt 00:00:39]}
1-0

[Event "NJSK 2024 C"]
[Site "Groningen, Netherlands"]
[Date "2024.05.03"]
[Round "10.1"]
[White "Kurt, Sascha"]
[Black "Groenewoud, Joel"]
[Result "0-1"]
[TimeControl "90min/40moves + 30min + 30sec/move"]
[WhiteElo "2096"]
[BlackElo "2030"]

1. e4 {[%clk 00:05:03]} {[%emt 00:00:02]} c6 {[%clk 00:05:05]} {[%emt
00:00:01]} 2. d4 {[%clk 00:05:05]} {[%emt 00:00:01]} d5 {[%clk 00:05:08]} 3.
exd5 {[%clk 00:05:07]} {[%emt 00:00:03]} cxd5 {[%emt 00:00:01]} 4. c4 {[%clk
00:05:08]} Nf6 {[%clk 00:05:10]} {[%emt 00:00:02]} 5. Nc3 {[%clk 00:05:10]}
{[%emt 00:00:01]} g6 {[%clk 00:05:11]} {[%emt 00:00:03]} 6. Qb3 {[%clk
00:05:09]} {[%emt 00:00:02]} Bg7 {[%clk 00:05:09]} {[%emt 00:00:05]} 7. cxd5
{[%clk 00:05:11]} {[%emt 00:00:02]} O-O {[%clk 00:05:09]} {[%emt 00:00:02]} 8.
Be2 {[%clk 00:05:13]} {[%emt 00:00:03]} Na6 {[%clk 00:05:01]} {[%emt 00:00:09]}
9. Bf3 {[%clk 00:04:55]} {[%emt 00:00:22]} b5 {[%clk 00:04:57]} {[%emt
00:00:07]} 10. a3 {[%clk 00:04:41]} {[%emt 00:00:16]} Rb8 {[%clk 00:04:53]}
{[%emt 00:00:06]} 11. Nge2 {[%clk 00:04:40]} {[%emt 00:00:05]} b4 {[%clk
00:04:13]} {[%emt 00:00:42]} 12. axb4 {[%clk 00:04:42]} {[%emt 00:00:02]} Nxb4
{[%clk 00:04:13]} {[%emt 00:00:03]} 13. O-O {[%clk 00:04:36]} {[%emt 00:00:08]}
Bf5 {[%clk 00:04:03]} {[%emt 00:00:13]} 14. Qa4 {[%clk 00:04:17]} {[%emt
00:00:23]} Nbxd5 {[%clk 00:02:57]} {[%emt 00:01:08]} 15. Qxa7 {[%clk 00:03:59]}
{[%emt 00:00:21]} Re8 {[%clk 00:02:25]} {[%emt 00:00:35]} 16. Rd1 {[%clk
00:03:39]} {[%emt 00:00:23]} Qd6 {[%clk 00:01:36]} {[%emt 00:00:52]} 17. Qc5
{[%clk 00:02:53]} {[%emt 00:00:49]} Nxc3 {[%clk 00:01:16]} {[%emt 00:00:23]} 18.
Nxc3 {[%clk 00:02:12]} {[%emt 00:00:44]} Rbd8 {[%clk 00:00:42]} {[%emt
00:00:37]} 19. Qxd6 {[%clk 00:02:08]} {[%emt 00:00:07]} Rxd6 {[%clk 00:00:43]}
{[%emt 00:00:02]} 20. Bf4 {[%clk 00:02:02]} {[%emt 00:00:08]} Rb6 {[%clk
00:00:45]} {[%emt 00:00:02]} 21. Na4 {[%clk 00:01:57]} {[%emt 00:00:09]} Rb4
{[%clk 00:00:39]} {[%emt 00:00:08]} 22. Be5 {[%clk 00:01:28]} {[%emt 00:00:32]}
Bc2 {[%clk 00:00:28]} {[%emt 00:00:15]} 23. Re1 {[%clk 00:01:28]} {[%emt
00:00:03]} Rxa4 {[%clk 00:00:27]} {[%emt 00:00:04]} 24. Rac1 {[%clk 00:01:27]}
{[%emt 00:00:03]} Rc8 {[%clk 00:00:11]} {[%emt 00:00:19]} 25. b3 {[%emt
00:00:43]} Ra2 {[%clk 00:00:05]} {[%emt 00:00:07]} 26. Bb7 {[%clk 00:00:46]}
{[%emt 00:00:07]} Rc3 {[%clk 00:00:05]} {[%emt 00:00:03]} 27. b4 {[%clk
00:00:17]} {[%emt 00:00:32]} Rca3 {[%clk 00:00:04]} {[%emt 00:00:03]} 28. g3
{[%clk 00:00:11]} {[%emt 00:00:08]} Bf5 {[%clk 00:00:06]} {[%emt 00:00:01]} 29.
b5 {[%clk 00:00:10]} {[%emt 00:00:05]} Rb2 {[%clk 00:00:08]} {[%emt 00:00:01]}
30. Bc6 {[%clk 00:00:12]} {[%emt 00:00:02]} Rab3 {[%clk 00:00:09]} {[%emt
00:00:01]} 31. d5 {[%clk 00:00:07]} {[%emt 00:00:08]} Rd2 {[%clk 00:00:08]}
{[%emt 00:00:04]} 32. Ra1 {[%clk 00:00:08]} {[%emt 00:00:03]} Nxd5 {[%emt
00:00:06]} 33. Ra8+ {[%clk 00:00:08]} Bf8 {[%clk 00:00:10]} {[%emt 00:00:01]}
34. Bxd5 {[%clk 00:00:05]} {[%emt 00:00:06]} Rxd5 {[%clk 00:00:11]} {[%emt
00:00:01]} 35. Bf4 {[%clk 00:00:08]} {[%emt 00:00:01]} Kg7 {[%clk 00:00:13]}
{[%emt 00:00:01]} 36. Bh6+ {[%clk 00:00:06]} {[%emt 00:00:05]} Kxh6 {[%clk
00:00:14]} {[%emt 00:00:02]} 37. Rxf8 {[%clk 00:00:08]} Kg7 {[%clk 00:00:16]}
{[%emt 00:00:01]} 38. Re8 {[%clk 00:00:09]} {[%emt 00:00:01]} e6 {[%clk
00:00:17]} {[%emt 00:00:02]} 39. Rc1 {[%clk 00:00:07]} {[%emt 00:00:05]} Rdxb5
{[%clk 00:00:18]} {[%emt 00:00:02]} 40. Rcc8 {[%clk 00:00:07]} {[%emt
00:00:03]} Bh3 {[%clk 00:00:19]} {[%emt 00:00:02]} 41. f4 {[%clk 00:00:09]}
{[%emt 00:00:01]} Rb2 {[%clk 00:00:21]} {[%emt 00:00:02]} 42. Rg8+ {[%clk
00:00:08]} {[%emt 00:00:04]} Kf6 {[%clk 00:00:22]} {[%emt 00:00:01]} 43. Rc1
{[%clk 00:00:09]} {[%emt 00:00:02]} Rg2+ {[%clk 00:00:23]} {[%emt 00:00:02]} 44.
Kh1 {[%clk 00:00:10]} {[%emt 00:00:02]} Rbb2 {[%clk 00:00:24]} {[%emt
00:00:02]} 45. Rh8 {[%clk 00:00:08]} {[%emt 00:00:06]} Rxh2+ {[%clk 00:00:25]}
{[%emt 00:00:01]} 46. Kg1 {[%clk 00:00:10]} Rbg2+ {[%clk 00:00:27]} {[%emt
00:00:02]} 47. Kf1 {[%clk 00:00:12]} {[%emt 00:00:01]} Rh1# {[%clk 00:00:29]}
{[%emt 00:00:01]} 0-1

[Event "NJSK 2024 C"]
[Site "Groningen, Netherlands"]
[Date "2024.05.03"]
[Round "11.1"]
[White "Grooten, Tommy"]
[Black "Kurt, Sascha"]
[Result "1/2-1/2"]
[TimeControl "90min/40moves + 30min + 30sec/move"]
[WhiteElo "2018"]
[BlackElo "2096"]

1. d4 {[%clk 00:05:05]} Nf6 {[%clk 00:05:03]} {[%emt 00:00:04]} 2. c4 {[%clk
00:05:07]} {[%emt 00:00:01]} e6 {[%clk 00:05:05]} {[%emt 00:00:01]} 3. Nf3
{[%clk 00:05:09]} d5 {[%clk 00:05:06]} {[%emt 00:00:02]} 4. cxd5 {[%clk
00:05:11]} {[%emt 00:00:01]} exd5 {[%clk 00:05:07]} {[%emt 00:00:02]} 5. Nc3
{[%clk 00:05:13]} {[%emt 00:00:01]} c6 {[%clk 00:05:08]} {[%emt 00:00:02]} 6.
Bg5 {[%clk 00:05:14]} {[%emt 00:00:02]} Bd6 {[%clk 00:05:06]} {[%emt 00:00:05]}
7. Qc2 {[%clk 00:04:52]} {[%emt 00:00:26]} O-O {[%clk 00:05:03]} {[%emt
00:00:05]} 8. e3 {[%clk 00:04:51]} {[%emt 00:00:04]} h6 {[%clk 00:04:50]}
{[%emt 00:00:16]} 9. Bh4 {[%clk 00:04:47]} {[%emt 00:00:07]} Re8 {[%clk
00:04:49]} {[%emt 00:00:05]} 10. Bd3 {[%clk 00:04:44]} {[%emt 00:00:06]} Bg4
{[%clk 00:04:49]} {[%emt 00:00:03]} 11. Nd2 {[%clk 00:04:34]} {[%emt 00:00:12]}
Nbd7 {[%clk 00:04:43]} {[%emt 00:00:08]} 12. O-O {[%clk 00:04:28]} {[%emt
00:00:10]} Qc7 {[%clk 00:04:28]} {[%emt 00:00:18]} 13. Bg3 {[%clk 00:04:29]}
{[%emt 00:00:02]} Bxg3 {[%clk 00:04:26]} {[%emt 00:00:05]} 14. hxg3 {[%clk
00:04:31]} {[%emt 00:00:01]} Qd6 {[%clk 00:04:14]} {[%emt 00:00:16]} 15. Rab1
{[%clk 00:04:22]} {[%emt 00:00:11]} a5 {[%clk 00:04:15]} {[%emt 00:00:02]} 16.
a3 {[%clk 00:04:23]} {[%emt 00:00:02]} b5 {[%clk 00:03:57]} {[%emt 00:00:21]}
17. Rfc1 {[%clk 00:04:12]} {[%emt 00:00:14]} Rec8 {[%clk 00:03:43]} {[%emt
00:00:17]} 18. b4 {[%clk 00:03:30]} {[%emt 00:00:45]} axb4 {[%clk 00:03:43]}
{[%emt 00:00:04]} 19. axb4 {[%clk 00:03:32]} Nb6 {[%clk 00:03:44]} 20. Qb3
{[%clk 00:03:04]} {[%emt 00:00:32]} Nc4 {[%clk 00:03:41]} {[%emt 00:00:07]} 21.
Bxc4 {[%clk 00:02:47]} {[%emt 00:00:19]} bxc4 {[%clk 00:03:38]} {[%emt
00:00:06]} 22. Qb2 {[%clk 00:02:47]} {[%emt 00:00:04]} Rcb8 {[%clk 00:03:29]}
{[%emt 00:00:12]} 23. e4 {[%emt 00:00:57]} dxe4 {[%clk 00:02:58]} 24. Ncxe4
{[%clk 00:02:20]} {[%emt 00:00:09]} Nxe4 {[%clk 00:02:59]} {[%emt 00:00:01]} 25.
Nxe4 {[%clk 00:02:22]} {[%emt 00:00:01]} Qd5 {[%clk 00:02:29]} {[%emt
00:00:32]} 26. Nc5 {[%clk 00:02:03]} {[%emt 00:00:24]} Rd8 {[%clk 00:02:07]}
{[%emt 00:00:24]} 27. Qc3 {[%clk 00:01:39]} {[%emt 00:00:28]} Qxd4 {[%clk
00:01:48]} {[%emt 00:00:21]} 28. Qxc4 {[%clk 00:01:39]} {[%emt 00:00:03]} Bf5
{[%clk 00:01:26]} {[%emt 00:00:24]} 29. Qxd4 {[%clk 00:01:28]} {[%emt
00:00:16]} Rxd4 {[%clk 00:01:28]} {[%emt 00:00:01]} 30. Rb2 {[%clk 00:01:27]}
{[%emt 00:00:03]} Rb8 {[%clk 00:01:24]} {[%emt 00:00:07]} 31. Na6 {[%clk
00:00:52]} {[%emt 00:00:38]} Rb6 {[%clk 00:01:25]} {[%emt 00:00:02]} 32. Ra2
{[%clk 00:00:54]} {[%emt 00:00:01]} Kh7 {[%clk 00:00:49]} {[%emt 00:00:40]} 33.
Ra5 {[%clk 00:00:48]} {[%emt 00:00:08]} Bc8 {[%clk 00:00:48]} {[%emt 00:00:04]}
34. Nc7 {[%clk 00:00:40]} {[%emt 00:00:12]} Rdxb4 {[%clk 00:00:41]} {[%emt
00:00:09]} 35. Rac5 {[%clk 00:00:34]} {[%emt 00:00:09]} Bb7 {[%clk 00:00:37]}
{[%emt 00:00:07]} 36. Ne8 {[%clk 00:00:31]} {[%emt 00:00:07]} Rb1 {[%clk
00:00:33]} {[%emt 00:00:06]} 37. Nd6 {[%clk 00:00:25]} {[%emt 00:00:09]} Rxc1+
{[%clk 00:00:33]} {[%emt 00:00:03]} 38. Rxc1 {[%clk 00:00:27]} {[%emt
00:00:01]} Ba6 {[%clk 00:00:35]} {[%emt 00:00:01]} 39. Nxf7 {[%clk 00:00:26]}
{[%emt 00:00:04]} Bb5 {[%clk 00:00:32]} {[%emt 00:00:06]} 40. Nd6 {[%clk
00:00:27]} {[%emt 00:00:02]} Rb8 {[%clk 00:00:32]} {[%emt 00:00:03]} 41. Nxb5
{[%clk 00:00:29]} {[%emt 00:00:01]} cxb5 {[%clk 00:00:35]} 42. Kf1 {[%clk
00:00:28]} {[%emt 00:00:03]} b4 {[%clk 00:00:34]} {[%emt 00:00:04]} 43. Ke2
{[%clk 00:00:30]} {[%emt 00:00:01]} b3 {[%clk 00:00:33]} {[%emt 00:00:05]} 44.
Rb1 {[%clk 00:00:32]} {[%emt 00:00:01]} Kg6 {[%clk 00:00:33]} {[%emt 00:00:02]}
45. Kd3 {[%clk 00:00:34]} Kf5 {[%clk 00:00:26]} {[%emt 00:00:10]} 46. f3 {[%clk
00:00:31]} {[%emt 00:00:06]} g5 {[%clk 00:00:17]} {[%emt 00:00:12]} 47. Kc3
{[%clk 00:00:33]} {[%emt 00:00:01]} h5 {[%clk 00:00:14]} {[%emt 00:00:06]} 48.
Rxb3 {[%clk 00:00:31]} {[%emt 00:00:05]} Rxb3+ {[%clk 00:00:17]} 49. Kxb3
{[%clk 00:00:33]} {[%emt 00:00:01]} h4 {[%clk 00:00:19]} 50. Kc3 {[%clk
00:00:24]} {[%emt 00:00:13]} hxg3 {[%clk 00:00:08]} {[%emt 00:00:13]} 51. Kd3
{[%clk 00:00:21]} {[%emt 00:00:06]} Ke5 {[%clk 00:00:09]} {[%emt 00:00:03]} 52.
Ke3 {[%clk 00:00:22]} Kf5 {[%clk 00:00:11]} {[%emt 00:00:01]} 53. Kd3 {[%clk
00:00:16]} {[%emt 00:00:10]} Kf4 {[%clk 00:00:07]} {[%emt 00:00:06]} 54. Kd4
{[%clk 00:00:18]} {[%emt 00:00:01]} Kf5 {[%clk 00:00:07]} {[%emt 00:00:04]} 55.
Kd5 {[%clk 00:00:16]} {[%emt 00:00:04]} Kf4 {[%clk 00:00:06]} {[%emt 00:00:04]}
56. Kd4 {[%clk 00:00:17]} {[%emt 00:00:02]} g4 {[%clk 00:00:07]} {[%emt
00:00:02]} 57. fxg4 {[%clk 00:00:18]} {[%emt 00:00:02]} Kxg4 {[%clk 00:00:09]}
58. Ke4 {[%clk 00:00:20]} {[%emt 00:00:01]} Kh5 {[%clk 00:00:11]} {[%emt
00:00:02]} 59. Kf3 {[%clk 00:00:13]} {[%emt 00:00:10]} Kh4 {[%clk 00:00:13]}
{[%emt 00:00:01]} 60. Kf4 {[%clk 00:00:15]} Kh5 {[%clk 00:00:15]} 61. Kxg3
{[%clk 00:00:17]} {[%emt 00:00:01]} Kg5 {[%clk 00:00:18]} 62. Kf3 {[%clk
00:00:19]} Kf5 {[%clk 00:00:20]} 63. g4+ {[%clk 00:00:17]} {[%emt 00:00:05]}
Kg5 {[%clk 00:00:23]} {[%emt 00:00:01]} 64. Kg2 {[%clk 00:00:19]} {[%emt
00:00:01]} Kg6 {[%clk 00:00:24]} {[%emt 00:00:01]} 65. g5 {[%clk 00:00:21]}
{[%emt 00:00:01]} Kg7 {[%clk 00:00:26]} {[%emt 00:00:01]} 66. g6 {[%clk
00:00:24]} Kf6 {[%clk 00:00:29]} 67. g7 {[%clk 00:00:26]} {[%emt 00:00:01]} Kf7
{[%clk 00:00:31]} 68. g8=N {[%clk 00:00:27]} {[%emt 00:00:02]} 1/2-1/2

[Event "NJSK 2024 C"]
[Site "Groningen, Netherlands"]
[Date "2024.05.03"]
[Round "12.1"]
[White "Groenewoud, Joel"]
[Black "Grooten, Tommy"]
[Result "0-1"]
[TimeControl "90min/40moves + 30min + 30sec/move"]
[WhiteElo "2030"]
[BlackElo "2018"]

1. e4 {[%clk 00:05:04]} {[%emt 00:00:01]} c5 {[%clk 00:05:05]} {[%emt
00:00:01]} 2. Nf3 {[%clk 00:05:06]} {[%emt 00:00:01]} e6 {[%clk 00:05:07]} 3.
d4 {[%clk 00:05:08]} {[%emt 00:00:01]} cxd4 {[%clk 00:05:09]} {[%emt 00:00:01]}
4. Nxd4 {[%clk 00:05:10]} {[%emt 00:00:01]} Nf6 {[%clk 00:05:11]} {[%emt
00:00:01]} 5. Nc3 {[%clk 00:05:12]} {[%emt 00:00:01]} d6 {[%clk 00:05:14]} 6.
Be3 {[%clk 00:05:11]} {[%emt 00:00:03]} a6 {[%clk 00:05:15]} {[%emt 00:00:02]}
7. f3 {[%clk 00:05:07]} {[%emt 00:00:07]} b5 {[%clk 00:04:59]} {[%emt
00:00:18]} 8. a3 {[%clk 00:05:08]} {[%emt 00:00:03]} Nbd7 {[%clk 00:04:54]}
{[%emt 00:00:07]} 9. g4 {[%clk 00:05:08]} {[%emt 00:00:04]} h6 {[%clk
00:04:55]} {[%emt 00:00:01]} 10. Qd2 {[%clk 00:05:10]} {[%emt 00:00:02]} Qc7
{[%clk 00:04:56]} {[%emt 00:00:02]} 11. Rg1 {[%clk 00:05:03]} {[%emt 00:00:09]}
Be7 {[%clk 00:04:55]} {[%emt 00:00:04]} 12. h4 {[%clk 00:05:02]} {[%emt
00:00:04]} Nh7 {[%clk 00:03:45]} {[%emt 00:01:12]} 13. g5 {[%clk 00:04:57]}
{[%emt 00:00:09]} hxg5 {[%clk 00:03:48]} {[%emt 00:00:01]} 14. hxg5 {[%clk
00:04:59]} {[%emt 00:00:01]} g6 {[%clk 00:03:50]} {[%emt 00:00:01]} 15. Rh1
{[%clk 00:04:50]} {[%emt 00:00:11]} Bb7 {[%clk 00:03:24]} {[%emt 00:00:29]} 16.
O-O-O {[%clk 00:04:48]} {[%emt 00:00:04]} O-O-O {[%clk 00:03:24]} {[%emt
00:00:03]} 17. Kb1 {[%clk 00:04:44]} {[%emt 00:00:08]} Rde8 {[%clk 00:03:06]}
{[%emt 00:00:21]} 18. Bd3 {[%clk 00:04:40]} {[%emt 00:00:07]} Qd8 {[%clk
00:03:07]} {[%emt 00:00:03]} 19. Rdg1 {[%clk 00:04:40]} {[%emt 00:00:03]} Nc5
{[%clk 00:03:01]} {[%emt 00:00:08]} 20. Rh2 {[%clk 00:04:20]} {[%emt 00:00:23]}
e5 {[%clk 00:02:51]} {[%emt 00:00:13]} 21. Nb3 {[%clk 00:04:17]} {[%emt
00:00:06]} Ne6 {[%clk 00:02:38]} {[%emt 00:00:17]} 22. Rhg2 {[%clk 00:03:49]}
{[%emt 00:00:31]} Nhxg5 {[%clk 00:02:05]} {[%emt 00:00:35]} 23. Bxg5 {[%clk
00:03:29]} {[%emt 00:00:23]} Nxg5 {[%clk 00:02:07]} {[%emt 00:00:01]} 24. Rxg5
{[%clk 00:03:25]} {[%emt 00:00:07]} Bxg5 {[%clk 00:02:10]} 25. Qxg5 {[%clk
00:03:24]} {[%emt 00:00:04]} Qxg5 {[%clk 00:02:12]} 26. Rxg5 {[%clk 00:03:26]}
{[%emt 00:00:02]} Rh3 {[%clk 00:02:14]} 27. Be2 {[%clk 00:03:25]} {[%emt
00:00:04]} Kd7 {[%clk 00:02:12]} {[%emt 00:00:06]} 28. Kc1 {[%clk 00:03:26]}
{[%emt 00:00:02]} Ke6 {[%clk 00:02:11]} {[%emt 00:00:03]} 29. Kd2 {[%clk
00:03:25]} {[%emt 00:00:04]} Rh4 {[%clk 00:02:02]} {[%emt 00:00:12]} 30. Ke3
{[%clk 00:03:19]} {[%emt 00:00:09]} Reh8 {[%clk 00:01:58]} {[%emt 00:00:07]} 31.
a4 {[%clk 00:03:19]} {[%emt 00:00:03]} bxa4 {[%clk 00:01:55]} {[%emt 00:00:06]}
32. Bc4+ {[%clk 00:03:20]} {[%emt 00:00:02]} Kf6 {[%clk 00:01:51]} {[%emt
00:00:08]} 33. Rg1 {[%clk 00:03:14]} {[%emt 00:00:08]} axb3 {[%clk 00:01:52]}
{[%emt 00:00:03]} 34. Bxb3 {[%clk 00:03:15]} {[%emt 00:00:02]} Rh1 {[%clk
00:01:47]} {[%emt 00:00:07]} 35. Rg2 {[%clk 00:02:44]} {[%emt 00:00:34]} R8h2
{[%clk 00:01:48]} {[%emt 00:00:02]} 36. Rg3 {[%clk 00:02:24]} {[%emt 00:00:23]}
a5 {[%clk 00:01:47]} {[%emt 00:00:04]} 37. Nb5 {[%clk 00:00:07]} {[%emt
00:02:20]} Ba6 {[%clk 00:01:39]} {[%emt 00:00:12]} 38. c4 {[%clk 00:00:09]}
Rxb2 {[%clk 00:01:37]} {[%emt 00:00:05]} 39. Ba4 {[%clk 00:00:05]} {[%emt
00:00:07]} Rb4 {[%clk 00:01:33]} {[%emt 00:00:06]} 40. Nc3 {[%clk 00:00:04]}
{[%emt 00:00:05]} Rxc4 {[%clk 00:01:04]} {[%emt 00:00:32]} 41. Nd5+ {[%clk
00:00:05]} {[%emt 00:00:02]} Ke6 {[%clk 00:01:06]} {[%emt 00:00:01]} 42. Bb3
{[%clk 00:00:07]} {[%emt 00:00:01]} a4 {[%clk 00:00:42]} {[%emt 00:00:27]} 43.
Bxc4 {[%clk 00:00:06]} {[%emt 00:00:04]} Bxc4 {[%clk 00:00:44]} 44. Nb6 {[%clk
00:00:06]} {[%emt 00:00:02]} Bb3 {[%clk 00:00:46]} {[%emt 00:00:01]} 45. Rg2
{[%clk 00:00:05]} {[%emt 00:00:05]} Rb1 {[%clk 00:00:41]} {[%emt 00:00:07]} 46.
Rd2 {[%clk 00:00:04]} {[%emt 00:00:04]} a3 {[%clk 00:00:38]} {[%emt 00:00:07]}
47. Nc8 {[%clk 00:00:05]} {[%emt 00:00:02]} Kf6 {[%clk 00:00:23]} {[%emt
00:00:17]} 48. Rxd6+ {[%clk 00:00:06]} {[%emt 00:00:02]} Kg7 {[%clk 00:00:25]}
{[%emt 00:00:01]} 49. Ra6 {[%clk 00:00:06]} {[%emt 00:00:04]} a2 {[%clk
00:00:26]} {[%emt 00:00:01]} 50. Kd4 {[%emt 00:00:07]} 0-1

[ePGN "0.1;DGT LiveChess/2.2.6"]